fUSD/lending_fUSD_20250616
["ID","MTS","AMOUNT","RATE_DAILY","PERIOD"]
[366192933,1750107053800,-490.0,0.00016153,2]
[366192934,1750107053811,-490.0,0.00016153,2]
[366192935,1750107053821,-490.0,0.00016153,2]
[366192936,1750107053831,-490.0,0.00016153,2]
[366192937,1750107053844,-500.35,0.00016153,2]
[366192938,1750107053854,-490.0,0.00016153,2]
[366192939,1750107053864,-490.0,0.00016153,2]
[366192940,1750107053874,-490.0,0.00016153,2]
[366192941,1750107053884,-498.04,0.00016153,2]
[366192942,1750107053894,-490.0,0.00016153,2]
[366192943,1750107053905,-490.0,0.00016153,2]
[366192944,1750107053915,-490.0,0.00016153,2]
[366192945,1750107053926,-490.0,0.00016153,2]
[366192946,1750107053936,-490.0,0.00016153,2]
[366192947,1750107053946,-490.0,0.00016153,2]
[366192948,1750107053956,-490.0,0.00016153,2]
[366192949,1750107053966,-520.16,0.00016153,2]
[366192950,1750107053977,-490.0,0.00016153,2]
[366192951,1750107053987,-490.0,0.00016153,2]
[366192952,1750107053997,-490.0,0.00016153,2]
[366192953,1750107054007,-490.0,0.00016153,2]
[366192954,1750107054016,-490.0,0.00016153,2]
[366192955,1750107054026,-490.0,0.00016153,2]
[366192956,1750107054035,-490.0,0.00016153,2]
[366192957,1750107054047,-490.0,0.00016153,2]
[366192958,1750107054059,-490.0,0.00016153,2]
[366192959,1750107054069,-490.0,0.00016153,2]
[366192960,1750107054079,-490.0,0.00016153,2]
[366192961,1750107054090,-490.0,0.00016153,2]
[366192962,1750107054099,-553.56,0.00016153,2]
[366192963,1750107054109,-490.0,0.00016153,2]
[366192964,1750107054119,-490.0,0.00016153,2]
[366192965,1750107054128,-610.18987473,0.00016153,2]
[366192966,1750107054138,-490.0,0.00016153,2]
[366192967,1750107054148,-490.0,0.00016153,2]
[366192968,1750107054158,-490.0,0.00016153,2]
[366192969,1750107054168,-948.77,0.00016153,2]
[366192970,1750107054178,-447.76656188,0.00016153,2]
[366192971,1750107054189,-490.0,0.00016153,2]
[366192972,1750107054199,-301.85368221,0.00016153,2]
[366192973,1750107054209,-490.0,0.00016153,2]
[366192974,1750107054219,-490.0,0.00016153,2]
[366192975,1750107054229,-490.0,0.00016153,2]
[366192976,1750107054239,-490.0,0.00016153,2]
[366192977,1750107054248,-2109.94,0.00016153,2]
[366192978,1750107054259,-257.65975613,0.00016153,2]
[366192979,1750107054268,-5759.16,0.00016153,2]
[366192980,1750107054278,-532.35872046,0.00016153,2]
[366192981,1750107054288,-490.0,0.00016153,2]
[366192982,1750107054298,-656.33,0.00016153,2]
[366192983,1750107054308,-2156.34,0.00016153,2]
[366192984,1750107054318,-490.0,0.00016153,2]
[366192985,1750107054328,-1014.87,0.00016153,2]
[366192986,1750107054337,-490.0,0.00016153,2]
[366192987,1750107054347,-1654.38,0.00016153,2]
[366192988,1750107054357,-490.0,0.00016153,2]
[366192989,1750107054368,-490.0,0.00016153,2]
[366192990,1750107054379,-490.0,0.00016153,2]
[366192991,1750107054390,-490.0,0.00016153,2]
[366192992,1750107054399,-490.0,0.00016153,2]
[366192993,1750107054410,-490.0,0.00016153,2]
[366192994,1750107054419,-1075.17,0.00016153,2]
[366192995,1750107054429,-490.0,0.00016153,2]
[366192996,1750107054439,-858.13,0.00016153,2]
[366192997,1750107054448,-490.0,0.00016153,2]
[366192998,1750107054459,-1828.07,0.00016153,2]
[366192999,1750107054468,-490.0,0.00016153,2]
[366193000,1750107054478,-597.65,0.00016153,2]
[366193001,1750107054488,-937.82,0.00016153,2]
[366193002,1750107054499,-490.0,0.00016153,2]
[366193003,1750107054508,-2186.04,0.00016153,2]
[366193004,1750107054519,-490.0,0.00016153,2]
[366193005,1750107054529,-4764.38,0.00016153,2]
[366193006,1750107054539,-490.0,0.00016153,2]
[366193007,1750107054549,-490.0,0.00016153,2]
[366193008,1750107054558,-1659.37,0.00016153,2]
[366193009,1750107054568,-490.0,0.00016153,2]
[366193010,1750107054577,-490.0,0.00016153,2]
[366193011,1750107054587,-1000.0,0.00016153,2]
[366193012,1750107054597,-490.0,0.00016153,2]
[366193013,1750107054606,-490.0,0.00016153,2]
[366193014,1750107054616,-490.0,0.00016153,2]
[366193015,1750107054626,-490.0,0.00016153,2]
[366193016,1750107054635,-560.77,0.00016153,2]
[366193017,1750107054645,-3192.11,0.00016153,2]
[366193018,1750107054655,-490.0,0.00016153,2]
[366193019,1750107054664,-490.0,0.00016153,2]
[366193020,1750107054673,-490.0,0.00016153,2]
[366193021,1750107054683,-800.75,0.00016153,2]
[366193022,1750107054694,-621.14,0.00016153,2]
[366193023,1750107054704,-4951.22,0.00016153,2]
[366193024,1750107054715,-490.0,0.00016153,2]
[366193025,1750107054726,-490.0,0.00016153,2]
[366193026,1750107054737,-490.0,0.00016153,2]
[366193027,1750107054747,-490.0,0.00016153,2]
[366193028,1750107054758,-580.65,0.00016153,2]
[366193029,1750107054769,-626.75,0.00016153,2]
[366193030,1750107054779,-619.68,0.00016153,2]
[366193031,1750107054789,-498.85,0.00016153,2]
[366193032,1750107054799,-490.0,0.00016153,2]
[366193033,1750107054810,-490.0,0.00016153,2]
[366193034,1750107054820,-490.0,0.00016153,2]
[366193035,1750107054831,-506.21,0.00016153,2]
[366193036,1750107054841,-1860.62,0.00016153,2]
[366193037,1750107054852,-490.0,0.00016153,2]
[366193038,1750107054862,-490.0,0.00016153,2]
[366193039,1750107054871,-699.31,0.00016153,2]
[366193040,1750107054882,-490.0,0.00016153,2]
[366193041,1750107054892,-490.0,0.00016153,2]
[366193042,1750107054901,-490.0,0.00016153,2]
[366193043,1750107054911,-490.0,0.00016153,2]
[366193044,1750107054920,-490.0,0.00016153,2]
[366193045,1750107054931,-490.0,0.00016153,2]
[366193046,1750107054941,-490.0,0.00016153,2]
[366193047,1750107054952,-490.0,0.00016153,2]
[366193048,1750107054967,-200.0,0.00016154,2]
[366193049,1750107054977,-200.0,0.00016154,2]
[366193050,1750107054987,-499.77,0.00016154,2]
[366193051,1750107054999,-510.77,0.00016154,2]
[366193052,1750107055009,-507.38,0.00016154,2]
[366193053,1750107055020,-490.0,0.00016154,2]
[366193054,1750107055030,-490.0,0.00016154,2]
[366193055,1750107055040,-693.42,0.00016154,2]
[366193056,1750107055050,-490.0,0.00016154,2]
[366193057,1750107055060,-490.0,0.00016154,2]
[366193058,1750107055070,-200.0,0.00016154,2]
[366193059,1750107055080,-490.0,0.00016154,2]
[366193060,1750107055089,-801.76,0.00016154,2]
[366193061,1750107055099,-490.0,0.00016154,2]
[366193062,1750107055110,-427.20428369,0.00016154,2]
[366193063,1750107055393,-99.59571631,0.00016154,2]
[366193064,1750107055404,-490.0,0.00016154,2]
[366193065,1750107055414,-548.44,0.00016154,2]
[366193066,1750107055424,-490.0,0.00016154,2]
[366193067,1750107055433,-507.96428369,0.00016154,2]
[366193068,1750107055455,-400.41571631,0.00016154,2]
[366193069,1750107055465,-200.0,0.00016154,2]
[366193070,1750107055475,-71.45033371,0.00016159,2]
[366193071,1750107055487,-2740.81137966,0.00016159,2]
[366193072,1750107055497,-168.0,0.00016161,2]
[366193073,1750107055506,-408.16480164,0.00016176,2]
[366193074,1750107055528,-340.14592445,0.00016176,2]
[366193075,1750107055537,-300.0,0.00016177,2]
[366193076,1750107055548,-156.49,0.00016181,2]
[366193077,1750107055558,-150.0,0.00016192,2]
[366193078,1750107055568,-354.7,0.00016192,2]
[366193079,1750107055578,-168.0,0.00016195,2]
[366193080,1750107055588,-304.10240237,0.000162,5]
[366193081,1750107055600,-795.89759763,0.000162,5]
[366193082,1750107055612,-641.21235277,0.0001621,2]
[366193083,1750107079779,250.0,0.00015315,2]
[366193085,1750107108133,1000.0,0.00024658,120]
[366193086,1750107121987,2833.2,0.0001549,2]
[366193087,1750107125333,289.59,0.00015293,2]
[366193088,1750107145345,500.0,0.00013164,2]
[366193089,1750107145600,500.0,0.00013164,2]
[366193091,1750107323988,432.75,0.00013699,2]
[366193092,1750107372026,5663.43314761,0.00024657,120]
[366193098,1750107460277,238.77,0.00015019,2]
[366193099,1750107460502,238.77,0.00015023,2]
[366193100,1750107460732,238.77,0.00015027,2]
[366193101,1750107460975,238.77,0.00015031,2]
[366193102,1750107461182,238.77,0.00015035,2]
[366193103,1750107461409,238.77,0.00015039,2]
[366193104,1750107461940,238.77,0.00015043,2]
[366193105,1750107462000,238.77,0.00015047,2]
[366193106,1750107462154,238.77,0.00015051,2]
[366193107,1750107462363,238.77,0.00015055,2]
[366193108,1750107462568,238.77,0.00015059,2]
[366193109,1750107462815,238.77,0.00015063,2]
[366193110,1750107463244,238.77,0.00015067,2]
[366193111,1750107463694,238.77,0.00015071,2]
[366193112,1750107464140,238.77,0.00015075,2]
[366193113,1750107464430,238.77,0.00015079,2]
[366193114,1750107464658,238.77,0.00015083,2]
[366193115,1750107464852,238.77,0.00015086,2]
[366193116,1750107465282,238.77,0.0001509,2]
[366193117,1750107465528,238.77,0.00015094,2]
[366193118,1750107687655,1000.0,0.00014883,2]
[366193119,1750107717917,666.0,0.00015208,2]
[366193120,1750107756985,163.97,0.00014871,2]
[366193121,1750107808703,471.98272738,0.00016,30]
[366193122,1750107923024,642.31160606,0.0001541,2]
[366193123,1750108114900,250.0,0.00014901,2]
[366193125,1750108229685,231.14183147,0.00015395,2]
[366193128,1750108231860,-833.01727258,0.0001549,10]
[366193129,1750108231871,-300.0,0.00015493,2]
[366193130,1750108231882,-600.0,0.00015493,4]
[366193132,1750108231893,-250.0,0.00015495,2]
[366193133,1750108231905,-576.58272744,0.00015495,4]
[366193134,1750108231918,-23.41727256,0.00015495,4]
[366193135,1750108231929,-300.0,0.000155,2]
[366193136,1750108231939,-168.0,0.00015529,2]
[366193137,1750108231950,-68.08786181,0.00015529,2]
[366193138,1750108231978,-431.91213819,0.00015529,2]
[366193139,1750108231989,-115.34639883,0.00015529,2]
[366193140,1750108232002,-119.18299291,0.00015529,2]
[366193141,1750108232012,-200.0,0.000156,5]
[366193142,1750108232023,-280.77,0.00015684,2]
[366193143,1750108232033,-738.20784351,0.00015694,2]
[366193144,1750108232047,-385.80657104,0.00015694,2]
[366193145,1750108232057,-58.7555884,0.000157,5]
[366193146,1750108232074,-441.2444116,0.000157,5]
[366193147,1750108232084,-99.28688992,0.00015721,2]
[366193148,1750108232097,-200.71311008,0.00015721,2]
[366193149,1750108232107,-300.0,0.00015721,2]
[366193150,1750108232118,-1200.0,0.00015721,2]
[366193151,1750108232129,-300.0,0.00015722,2]
[366193152,1750108232139,-937.5142,0.00015723,2]
[366193153,1750108232150,-17553.08,0.00015723,2]
[366193154,1750108232161,-150.99,0.00015723,2]
[366193155,1750108232171,-24711.1809,0.00015725,2]
[366193156,1750108232182,-700.0,0.000158,5]
[366193157,1750108232193,-151.0,0.00015814,2]
[366193158,1750108232203,-500.0,0.00015814,2]
[366193159,1750108232213,-1957.856,0.00015814,2]
[366193160,1750108232223,-500.0,0.00015814,2]
[366193161,1750108232235,-500.0,0.00015814,2]
[366193162,1750108232245,-367.97428001,0.00015814,2]
[366193164,1750108232256,-207.4,0.00015814,2]
[366193166,1750108232266,-490.0,0.00015823,2]
[366193168,1750108232276,-490.0,0.00015823,2]
[366193170,1750108232286,-490.0,0.00015823,2]
[366193171,1750108232296,-490.0,0.00015823,2]
[366193172,1750108232306,-493.98889462,0.00015823,2]
[366193173,1750108232317,-490.0,0.00015823,2]
[366193174,1750108232327,-490.0,0.00015823,2]
[366193175,1750108232338,-490.0,0.00015823,2]
[366193176,1750108232348,-490.0,0.00015823,2]
[366193177,1750108232359,-490.0,0.00015823,2]
[366193178,1750108232369,-490.0,0.00015823,2]
[366193179,1750108232380,-490.0,0.00015823,2]
[366193180,1750108232390,-490.0,0.00015823,2]
[366193181,1750108232401,-490.0,0.00015823,2]
[366193182,1750108232411,-490.0,0.00015823,2]
[366193183,1750108232421,-490.0,0.00015823,2]
[366193184,1750108232432,-490.0,0.00015823,2]
[366193185,1750108232443,-490.0,0.00015823,2]
[366193186,1750108232453,-490.0,0.00015823,2]
[366193187,1750108232463,-490.0,0.00015823,2]
[366193188,1750108232473,-490.0,0.00015823,2]
[366193189,1750108232483,-490.0,0.00015823,2]
[366193191,1750108232494,-490.0,0.00015823,2]
[366193193,1750108232504,-491.02190227,0.00015823,2]
[366193195,1750108232514,-490.0,0.00015823,2]
[366193197,1750108232524,-490.0,0.00015823,2]
[366193199,1750108232534,-490.0,0.00015823,2]
[366193200,1750108232544,-490.0,0.00015823,2]
[366193201,1750108232556,-490.0,0.00015823,2]
[366193202,1750108232565,-490.0,0.00015823,2]
[366193203,1750108232575,-490.0,0.00015823,2]
[366193205,1750108232585,-490.0,0.00015823,2]
[366193206,1750108232595,-490.0,0.00015823,2]
[366193207,1750108232606,-490.0,0.00015823,2]
[366193208,1750108232620,-490.0,0.00015823,2]
[366193209,1750108232630,-490.0,0.00015823,2]
[366193210,1750108232640,-490.0,0.00015823,2]
[366193211,1750108232650,-490.0,0.00015823,2]
[366193212,1750108232662,-490.0,0.00015823,2]
[366193213,1750108232672,-490.0,0.00015823,2]
[366193214,1750108232683,-490.0,0.00015823,2]
[366193215,1750108232695,-490.0,0.00015823,2]
[366193216,1750108232705,-490.0,0.00015823,2]
[366193217,1750108232716,-490.0,0.00015823,2]
[366193218,1750108232726,-549.92,0.00015823,2]
[366193219,1750108232736,-490.0,0.00015823,2]
[366193220,1750108232746,-490.0,0.00015823,2]
[366193221,1750108232756,-490.0,0.00015823,2]
[366193222,1750108232766,-490.0,0.00015823,2]
[366193223,1750108232776,-490.0,0.00015823,2]
[366193224,1750108232786,-490.0,0.00015823,2]
[366193225,1750108232796,-490.0,0.00015823,2]
[366193226,1750108232806,-490.0,0.00015823,2]
[366193227,1750108232816,-490.0,0.00015823,2]
[366193228,1750108232827,-490.0,0.00015823,2]
[366193229,1750108232836,-490.0,0.00015823,2]
[366193230,1750108232846,-490.0,0.00015823,2]
[366193231,1750108232856,-490.0,0.00015823,2]
[366193232,1750108232866,-490.0,0.00015823,2]
[366193233,1750108232876,-100.36267792,0.00015823,2]
[366193234,1750108232890,-464.93732208,0.00015823,2]
[366193235,1750108232899,-490.0,0.00015823,2]
[366193236,1750108232909,-490.0,0.00015823,2]
[366193237,1750108232919,-490.0,0.00015823,2]
[366193238,1750108232929,-490.0,0.00015823,2]
[366193239,1750108232939,-490.0,0.00015823,2]
[366193240,1750108232948,-490.0,0.00015823,2]
[366193241,1750108232958,-490.0,0.00015823,2]
[366193242,1750108232968,-490.0,0.00015823,2]
[366193243,1750108232978,-490.0,0.00015823,2]
[366193244,1750108232987,-490.0,0.00015823,2]
[366193245,1750108232997,-691.34,0.00015823,2]
[366193246,1750108233007,-490.0,0.00015823,2]
[366193247,1750108233016,-490.0,0.00015823,2]
[366193248,1750108233026,-490.0,0.00015823,2]
[366193249,1750108233037,-490.0,0.00015823,2]
[366193250,1750108233047,-490.0,0.00015823,2]
[366193251,1750108233058,-490.0,0.00015823,2]
[366193252,1750108233068,-490.0,0.00015823,2]
[366193253,1750108233078,-490.0,0.00015823,2]
[366193254,1750108233088,-490.0,0.00015823,2]
[366193256,1750108233099,-490.0,0.00015823,2]
[366193257,1750108233109,-490.0,0.00015823,2]
[366193259,1750108233120,-490.0,0.00015823,2]
[366193260,1750108233131,-490.0,0.00015823,2]
[366193261,1750108233141,-490.0,0.00015823,2]
[366193262,1750108233152,-490.0,0.00015823,2]
[366193263,1750108233162,-490.0,0.00015823,2]
[366193264,1750108233172,-490.0,0.00015823,2]
[366193265,1750108233182,-490.0,0.00015823,2]
[366193266,1750108233192,-490.0,0.00015823,2]
[366193267,1750108233202,-490.0,0.00015823,2]
[366193268,1750108233212,-490.0,0.00015823,2]
[366193269,1750108233222,-490.0,0.00015823,2]
[366193270,1750108233232,-490.0,0.00015823,2]
[366193271,1750108233243,-490.0,0.00015823,2]
[366193272,1750108233253,-490.0,0.00015823,2]
[366193273,1750108233263,-1042.0,0.00015854,2]
[366193274,1750108233274,-150.0,0.00015858,2]
[366193275,1750108233284,-354.78,0.00015863,2]
[366193276,1750108233295,-354.78,0.00015863,2]
[366193277,1750108233305,-354.78,0.00015863,2]
[366193278,1750108233315,-354.78,0.00015863,2]
[366193279,1750108233325,-2030.296672,0.00015869,2]
[366193280,1750108233336,-905.94,0.00015877,2]
[366193281,1750108233346,-5944.65298116,0.00015885,2]
[366193282,1750108233356,-1687.35702804,0.00015888,2]
[366193283,1750108233372,-907.0,0.00015896,2]
[366193284,1750108233382,-1958.0,0.00015896,2]
[366193285,1750108233392,-354.78,0.000159,2]
[366193286,1750108233402,-354.78,0.000159,2]
[366193287,1750108233412,-153.60678241,0.000159,2]
[366193288,1750108233422,-354.78,0.000159,2]
[366193289,1750108233432,-1000.0,0.000159,5]
[366193290,1750108233442,-152.63354981,0.000159,2]
[366193291,1750108233452,-500.0,0.00015904,2]
[366193292,1750108233463,-347.81486507,0.00015904,2]
[366193293,1750108233473,-710.0,0.00015904,2]
[366193294,1750108233484,-521.0,0.00015904,2]
[366193295,1750108233494,-868.48676193,0.00015912,2]
[366193296,1750108233504,-2105.41764886,0.00015924,2]
[366193297,1750108233515,-150.0,0.00015926,2]
[366193298,1750108233526,-469.35,0.0001594,2]
[366193299,1750108233536,-1000.0,0.00015941,2]
[366193300,1750108233547,-400.0,0.00015946,2]
[366193301,1750108233557,-1000.0,0.00015953,2]
[366193302,1750108233567,-150.0,0.00015968,2]
[366193303,1750108233577,-219.0,0.00015975,2]
[366193304,1750108233587,-715.28,0.00015976,2]
[366193305,1750108233597,-2183.31810187,0.00015979,2]
[366193306,1750108233610,-1565.0,0.00015983,2]
[366193307,1750108233621,-1511.0,0.00015983,2]
[366193308,1750108233631,-1532.726959,0.00015985,2]
[366193309,1750108233641,-1141.270081,0.00015985,2]
[366193310,1750108233652,-1361.5,0.00015985,2]
[366193311,1750108233664,-1624.49,0.00015985,2]
[366193312,1750108233674,-654.92,0.00015985,2]
[366193313,1750108233687,-504.41,0.00015985,2]
[366193314,1750108233698,-490.0,0.00015985,2]
[366193315,1750108233708,-846.47,0.00015985,2]
[366193316,1750108233718,-811.5,0.00015985,2]
[366193317,1750108233728,-581.17,0.00015985,2]
[366193318,1750108233738,-490.0,0.00015985,2]
[366193319,1750108233749,-695.53,0.00015985,2]
[366193320,1750108233759,-490.0,0.00015985,2]
[366193321,1750108233770,-490.0,0.00015985,2]
[366193322,1750108233780,-490.0,0.00015985,2]
[366193323,1750108233790,-2279.51,0.00015985,2]
[366193324,1750108233800,-755.34,0.00015985,2]
[366193325,1750108233812,-490.0,0.00015985,2]
[366193326,1750108233822,-707.46,0.00015985,2]
[366193327,1750108233833,-490.0,0.00015985,2]
[366193328,1750108233843,-490.0,0.00015985,2]
[366193329,1750108233853,-490.0,0.00015985,2]
[366193330,1750108233863,-1343.52,0.00015985,2]
[366193331,1750108233873,-738.85,0.00015985,2]
[366193332,1750108233883,-490.0,0.00015985,2]
[366193333,1750108233893,-490.0,0.00015985,2]
[366193334,1750108233902,-490.0,0.00015985,2]
[366193335,1750108233912,-490.0,0.00015985,2]
[366193336,1750108233922,-490.0,0.00015985,2]
[366193337,1750108233932,-490.0,0.00015985,2]
[366193338,1750108233941,-1109.61,0.00015985,2]
[366193339,1750108233951,-1660.55,0.00015985,2]
[366193340,1750108233962,-490.0,0.00015985,2]
[366193341,1750108233971,-490.0,0.00015985,2]
[366193342,1750108233981,-490.0,0.00015985,2]
[366193343,1750108233990,-490.0,0.00015985,2]
[366193344,1750108234000,-490.0,0.00015985,2]
[366193345,1750108234010,-1051.01,0.00015985,2]
[366193346,1750108234019,-490.0,0.00015985,2]
[366193347,1750108234029,-490.0,0.00015985,2]
[366193348,1750108234039,-854.01,0.00015985,2]
[366193349,1750108234048,-490.0,0.00015985,2]
[366193350,1750108234058,-490.0,0.00015985,2]
[366193351,1750108234068,-490.0,0.00015985,2]
[366193352,1750108234078,-807.41,0.00015985,2]
[366193353,1750108234088,-597.86,0.00015985,2]
[366193354,1750108234098,-490.0,0.00015985,2]
[366193355,1750108234108,-490.0,0.00015985,2]
[366193356,1750108234118,-490.0,0.00015985,2]
[366193357,1750108234128,-598.73,0.00015985,2]
[366193358,1750108234138,-490.0,0.00015985,2]
[366193359,1750108234148,-490.0,0.00015985,2]
[366193360,1750108234158,-1204.33,0.00015985,2]
[366193361,1750108234168,-734.02,0.00015985,2]
[366193362,1750108234178,-490.0,0.00015985,2]
[366193363,1750108234188,-1102.64,0.00015985,2]
[366193364,1750108234197,-600.59,0.00015985,2]
[366193365,1750108234207,-1951.53,0.00015985,2]
[366193366,1750108234217,-520.59,0.00015985,2]
[366193367,1750108234227,-490.0,0.00015985,2]
[366193368,1750108234237,-490.0,0.00015985,2]
[366193369,1750108234246,-904.69,0.00015985,2]
[366193370,1750108234256,-490.0,0.00015985,2]
[366193371,1750108234266,-490.0,0.00015985,2]
[366193372,1750108234276,-1065.63,0.00015985,2]
[366193373,1750108234287,-490.0,0.00015985,2]
[366193374,1750108234298,-490.0,0.00015985,2]
[366193375,1750108234308,-490.0,0.00015985,2]
[366193376,1750108234317,-490.0,0.00015985,2]
[366193377,1750108234328,-490.0,0.00015985,2]
[366193378,1750108234338,-490.0,0.00015985,2]
[366193379,1750108234348,-490.0,0.00015985,2]
[366193380,1750108234358,-490.0,0.00015985,2]
[366193381,1750108234368,-490.0,0.00015985,2]
[366193382,1750108234378,-490.0,0.00015985,2]
[366193383,1750108234388,-490.0,0.00015986,2]
[366193384,1750108234398,-490.0,0.00015986,2]
[366193385,1750108234408,-524.86,0.00015986,2]
[366193386,1750108234418,-490.0,0.00015986,2]
[366193387,1750108234428,-490.0,0.00015986,2]
[366193388,1750108234438,-490.0,0.00015986,2]
[366193389,1750108234448,-490.0,0.00015986,2]
[366193390,1750108234458,-588.80595954,0.00015986,2]
[366193391,1750108234468,-490.0,0.00015986,2]
[366193392,1750108234477,-490.0,0.00015986,2]
[366193393,1750108234488,-490.0,0.00015986,2]
[366193394,1750108234501,-490.0,0.00015986,2]
[366193395,1750108234517,-490.0,0.00015986,2]
[366193396,1750108234533,-490.0,0.00015986,2]
[366193397,1750108234547,-490.0,0.00015986,2]
[366193398,1750108234562,-490.0,0.00015986,2]
[366193399,1750108234574,-490.0,0.00015986,2]
[366193400,1750108234586,-490.0,0.00015986,2]
[366193401,1750108234597,-490.0,0.00015986,2]
[366193402,1750108234608,-490.0,0.00015986,2]
[366193403,1750108234624,-490.0,0.00015986,2]
[366193404,1750108234637,-490.0,0.00015986,2]
[366193405,1750108234652,-490.0,0.00015986,2]
[366193406,1750108234664,-490.0,0.00015986,2]
[366193407,1750108234677,-490.0,0.00015986,2]
[366193408,1750108234690,-490.0,0.00015986,2]
[366193409,1750108234703,-490.0,0.00015986,2]
[366193410,1750108234716,-490.0,0.00015986,2]
[366193411,1750108234730,-490.0,0.00015986,2]
[366193412,1750108234742,-490.0,0.00015986,2]
[366193413,1750108234755,-490.0,0.00015986,2]
[366193414,1750108234767,-490.0,0.00015986,2]
[366193415,1750108234779,-248.99334691,0.00015986,2]
[366193416,1750108234791,-490.0,0.00015986,2]
[366193417,1750108234802,-490.0,0.00015986,2]
[366193418,1750108234812,-490.0,0.00015986,2]
[366193419,1750108234824,-490.0,0.00015986,2]
[366193420,1750108234837,-490.0,0.00015986,2]
[366193421,1750108234849,-298.79065076,0.00015986,2]
[366193422,1750108235292,-191.20934924,0.00015986,2]
[366193423,1750108235304,-490.0,0.00015986,2]
[366193424,1750108235316,-490.0,0.00015986,2]
[366193425,1750108235327,-490.0,0.00015986,2]
[366193426,1750108235339,-490.0,0.00015986,2]
[366193427,1750108235350,-490.0,0.00015986,2]
[366193428,1750108235361,-490.0,0.00015986,2]
[366193429,1750108235372,-501.07043879,0.00015986,2]
[366193430,1750108235384,-520.64,0.00015986,2]
[366193431,1750108235395,-34.45738742,0.00015986,2]
[366193432,1750108235410,-455.54261258,0.00015986,2]
[366193433,1750108235422,-490.0,0.00015986,2]
[366193434,1750108235434,-490.0,0.00015986,2]
[366193435,1750108235445,-490.0,0.00015986,2]
[366193436,1750108235457,-490.0,0.00015986,2]
[366193437,1750108235468,-490.0,0.00015986,2]
[366193438,1750108235481,-490.0,0.00015986,2]
[366193439,1750108235492,-490.0,0.00015986,2]
[366193440,1750108235503,-507.38,0.00015986,2]
[366193441,1750108235515,-490.0,0.00015986,2]
[366193442,1750108235527,-113.14955809,0.00015986,2]
[366193443,1750108235540,-376.85044191,0.00015986,2]
[366193444,1750108235552,-490.0,0.00015986,2]
[366193445,1750108235565,-490.0,0.00015986,2]
[366193446,1750108235576,-490.0,0.00015986,2]
[366193447,1750108235588,-490.0,0.00015986,2]
[366193448,1750108235600,-490.0,0.00015986,2]
[366193449,1750108235614,-243.32572447,0.00015986,2]
[366193450,1750108235626,-276.32383362,0.00015986,2]
[366193451,1750108235721,-213.67616638,0.00015986,2]
[366193452,1750108235732,-490.0,0.00015986,2]
[366193453,1750108235744,-408.14358152,0.00015986,2]
[366193454,1750108235758,-81.85641848,0.00015986,2]
[366193455,1750108235769,-490.0,0.00015986,2]